[Event "Live Chess"]
[Site "Chess.com"]
[Date "2024.06.01"]
[Round "-"]
[White "road2gm5000"]
[Black "SavagePawn7"]
[Result "1-0"]
[WhiteElo "1080"]
[BlackElo "680"]
[TimeControl "300"]
[EndTime "12:06:06 PDT"]
[Termination "road2gm5000 won by resignation"]

1. e4 {[%clk 0:04:58.8]} 1... d5 {[%clk 0:04:55.4]} 2. exd5 {[%clk 0:04:58.7]}
2... Nf6 {[%clk 0:04:53.8]} 3. Nc3 {[%clk 0:04:58.1]} 3... Nxd5 {[%clk
0:04:52.2]} 4. Nxd5 {[%clk 0:04:58]} 4... Qxd5 {[%clk 0:04:49.7]} 5. d4 {[%clk
0:04:57.7]} 5... Nc6 {[%clk 0:04:48.2]} 6. Nf3 {[%clk 0:04:55.9]} 6... Nb4
{[%clk 0:04:45.6]} 7. c3 {[%clk 0:04:53.7]} 7... Qe4+ {[%clk 0:04:43.6]} 8. Be2
{[%clk 0:04:48.8]} 8... Nc2+ {[%clk 0:04:42]} 9. Kf1 {[%clk 0:04:43.5]} 9...
Nxa1 {[%clk 0:04:40.7]} 10. Bd3 {[%clk 0:04:38.4]} 10... Qd5 {[%clk 0:04:36.9]}
11. c4 {[%clk 0:04:34.5]} 11... Qe6 {[%clk 0:04:24.6]} 12. Be3 {[%clk
0:04:33.1]} 12... g6 {[%clk 0:04:09.7]} 13. Qxa1 {[%clk 0:04:30.3]} 13... Bg7
{[%clk 0:04:07.4]} 14. b3 {[%clk 0:04:28.5]} 14... O-O {[%clk 0:04:05.5]} 15.
Qc1 {[%clk 0:04:26.9]} 15... c6 {[%clk 0:03:57.3]} 16. g3 {[%clk 0:04:25.8]}
16... Qh3+ {[%clk 0:03:50]} 17. Ke2 {[%clk 0:04:25.1]} 17... Bf5 {[%clk
0:03:40.8]} 18. Bxf5 {[%clk 0:04:22.5]} 18... Qxf5 {[%clk 0:03:38.5]} 19. Qb1
{[%clk 0:04:21.4]} 19... Qxb1 {[%clk 0:03:36.2]} 20. Rxb1 {[%clk 0:04:21.1]}
20... Rfd8 {[%clk 0:03:23.4]} 21. Rd1 {[%clk 0:04:20.3]} 21... b6 {[%clk
0:03:20.6]} 22. Bf4 {[%clk 0:04:14.7]} 22... c5 {[%clk 0:03:14.5]} 23. d5 {[%clk
0:04:13.8]} 23... a6 {[%clk 0:03:08.6]} 24. Be5 {[%clk 0:04:12.7]} 24... f6
{[%clk 0:03:01]} 25. Bc7 {[%clk 0:04:10.3]} 25... Rdc8 {[%clk 0:02:54.9]} 26.
Bxb6 {[%clk 0:04:09.4]} 26... Rab8 {[%clk 0:02:50.8]} 27. Ba5 {[%clk 0:04:08]}
27... f5 {[%clk 0:02:47.6]} 28. Ng5 {[%clk 0:04:05.8]} 28... h6 {[%clk
0:02:43.5]} 29. Ne6 {[%clk 0:04:04.9]} 29... Kf7 {[%clk 0:02:21.2]} 30. f4
{[%clk 0:03:55.2]} 30... Bf6 {[%clk 0:01:52.9]} 31. Bd2 {[%clk 0:03:44.2]} 31...
g5 {[%clk 0:01:46.4]} 32. Be3 {[%clk 0:03:40.5]} 32... gxf4 {[%clk 0:01:44.5]}
33. gxf4 {[%clk 0:03:38.2]} 33... Rg8 {[%clk 0:01:35.3]} 34. Kf2 {[%clk
0:03:20.5]} 34... Rg6 {[%clk 0:01:30]} 35. Nxc5 {[%clk 0:03:13.3]} 35... Rbg8
{[%clk 0:01:27.2]} 36. Nxa6 {[%clk 0:03:07.7]} 36... Rg2+ {[%clk 0:01:24.7]} 37.
Ke1 {[%clk 0:03:06.4]} 37... Rg1+ {[%clk 0:01:21]} 38. Bxg1 {[%clk 0:03:04.4]}
38... Rxg1+ {[%clk 0:01:19.4]} 39. Ke2 {[%clk 0:03:04.1]} 39... Rg2+ {[%clk
0:01:14.2]} 40. Kf3 {[%clk 0:03:00.8]} 40... Rxa2 {[%clk 0:01:12.5]} 41. Nb4
{[%clk 0:02:58.8]} 41... Rxh2 {[%clk 0:01:10.5]} 42. Rd3 {[%clk 0:02:57.4]}
42... Rh3+ {[%clk 0:01:05.6]} 43. Ke2 {[%clk 0:02:55.6]} 43... Rxd3 {[%clk
0:01:03.9]} 44. Kxd3 {[%clk 0:02:55.5]} 44... h5 {[%clk 0:01:01.3]} 45. c5
{[%clk 0:02:54.5]} 45... e6 {[%clk 0:00:55.9]} 46. d6 {[%clk 0:02:52.7]} 46...
Bd8 {[%clk 0:00:50.2]} 47. c6 {[%clk 0:02:51.8]} 47... h4 {[%clk 0:00:40.8]} 48.
c7 {[%clk 0:02:51.1]} 48... Bxc7 {[%clk 0:00:36]} 49. dxc7 {[%clk 0:02:50.1]}
49... h3 {[%clk 0:00:33.7]} 50. c8=Q {[%clk 0:02:50]} 1-0

[Event "Live Chess"]
[Site "Chess.com"]
[Date "2024.06.01"]
[Round "-"]
[White "dl_chess"]
[Black "DoctorMantisTobogganMD"]
[Result "0-1"]
[WhiteElo "1171"]
[BlackElo "2190"]
[TimeControl "300"]
[EndTime "12:06:23 PDT"]
[Termination "DoctorMantisTobogganMD won by resignation"]

1. e4 {[%clk 0:04:56.1]} 1... g6 {[%clk 0:04:52]} 2. Nc3 {[%clk 0:04:54.7]} 2...
Bg7 {[%clk 0:04:47.3]} 3. d4 {[%clk 0:04:53.6]} 3... c6 {[%clk 0:04:45.3]} 4.
Nf3 {[%clk 0:04:52]} 4... d5 {[%clk 0:04:44.6]} 5. e5 {[%clk 0:04:49.4]} 5...
Bg4 {[%clk 0:04:43.6]} 6. h3 {[%clk 0:04:45.7]} 6... Bxf3 {[%clk 0:04:42.3]} 7.
Qxf3 {[%clk 0:04:43.9]} 7... f6 {[%clk 0:04:42.2]} 8. Bf4 {[%clk 0:04:32.3]}
8... fxe5 {[%clk 0:04:40.3]} 9. Bxe5 {[%clk 0:04:29]} 9... Nf6 {[%clk
0:04:39.2]} 10. Bxf6 {[%clk 0:04:25.9]} 10... Bxf6 {[%clk 0:04:33.7]} 11. Qe3
{[%clk 0:04:02.8]} 11... O-O {[%clk 0:04:30.8]} 12. O-O-O {[%clk 0:04:00.1]}
12... Nd7 {[%clk 0:04:30.1]} 13. Bd3 {[%clk 0:03:54.2]} 13... e5 {[%clk
0:04:28.9]} 14. Ne2 {[%clk 0:03:41.4]} 14... Bg5 {[%clk 0:04:21.9]} 15. f4
{[%clk 0:03:36.7]} 15... exf4 {[%clk 0:04:20.6]} 16. Qe6+ {[%clk 0:03:34.4]}
16... Kh8 {[%clk 0:04:20.3]} 17. h4 {[%clk 0:03:27.1]} 17... Bh6 {[%clk
0:04:17.9]} 18. h5 {[%clk 0:03:23.2]} 18... f3+ {[%clk 0:04:16.5]} 19. Kb1
{[%clk 0:03:14.2]} 19... fxe2 {[%clk 0:04:15.8]} 20. Bxe2 {[%clk 0:03:12.3]}
20... Qe8 {[%clk 0:04:06.5]} 21. Qxe8 {[%clk 0:03:01.6]} 21... Raxe8 {[%clk
0:04:05]} 22. Bd3 {[%clk 0:02:58.6]} 22... g5 {[%clk 0:04:02.4]} 23. Rhe1 {[%clk
0:02:50.2]} 23... Bg7 {[%clk 0:03:58.7]} 24. Rxe8 {[%clk 0:02:45.4]} 24... Rxe8
{[%clk 0:03:57.7]} 25. c3 {[%clk 0:02:38.6]} 25... Nf6 {[%clk 0:03:52.1]} 26.
Rh1 {[%clk 0:02:10.7]} 26... h6 {[%clk 0:03:43.6]} 27. Bg6 {[%clk 0:02:04.8]}
27... Re7 {[%clk 0:03:42.3]} 28. Rf1 {[%clk 0:02:02.9]} 28... Ne4 {[%clk
0:03:40.3]} 29. Kc2 {[%clk 0:01:52.9]} 29... Kg8 {[%clk 0:03:38.7]} 30. a4
{[%clk 0:01:44.6]} 30... a5 {[%clk 0:03:35.6]} 31. Kd3 {[%clk 0:01:26.7]} 31...
Ng3 {[%clk 0:03:27.4]} 32. Rf3 {[%clk 0:01:22.2]} 32... Ne2 {[%clk 0:03:24.8]}
33. Rf7 {[%clk 0:00:59.6]} 33... Nf4+ {[%clk 0:03:21.9]} 34. Kd2 {[%clk
0:00:53.4]} 34... Rxf7 {[%clk 0:03:20.9]} 35. Bxf7+ {[%clk 0:00:52.3]} 35...
Kxf7 {[%clk 0:03:20.8]} 36. g3 {[%clk 0:00:49.6]} 36... Nxh5 {[%clk 0:03:19.5]}
0-1

[Event "Live Chess"]
[Site "Chess.com"]
[Date "2024.06.01"]
[Round "-"]
[White "nigelst"]
[Black "Bob2pen"]
[Result "1-0"]
[WhiteElo "1652"]
[BlackElo "1868"]
[TimeControl "300"]
[EndTime "12:06:34 PDT"]
[Termination "nigelst won by resignation"]

1. e4 {[%clk 0:04:56.7]} 1... e6 {[%clk 0:04:58.6]} 2. d4 {[%clk 0:04:54.7]}
2... d5 {[%clk 0:04:57.8]} 3. exd5 {[%clk 0:04:52.5]} 3... exd5 {[%clk
0:04:56.8]} 4. Nf3 {[%clk 0:04:51.4]} 4... Bd6 {[%clk 0:04:55.3]} 5. Bd3 {[%clk
0:04:49.9]} 5... Ne7 {[%clk 0:04:54.1]} 6. c4 {[%clk 0:04:47]} 6... dxc4 {[%clk
0:04:51.4]} 7. Bxc4 {[%clk 0:04:45.9]} 7... Nbc6 {[%clk 0:04:50.6]} 8. O-O
{[%clk 0:04:42.7]} 8... O-O {[%clk 0:04:48.9]} 9. Nc3 {[%clk 0:04:39.7]} 9...
Bg4 {[%clk 0:04:47.6]} 10. Be3 {[%clk 0:04:35.7]} 10... Qd7 {[%clk 0:04:37.8]}
11. Bb5 {[%clk 0:04:33.5]} 11... a6 {[%clk 0:04:35.6]} 12. Ba4 {[%clk
0:04:31.4]} 12... Rad8 {[%clk 0:04:34.3]} 13. d5 {[%clk 0:04:27.2]} 13... Ne5
{[%clk 0:04:30.8]} 14. Bxd7 {[%clk 0:04:23.6]} 14... Rxd7 {[%clk 0:04:20.2]} 15.
Nxe5 {[%clk 0:04:09.9]} 15... Bxd1 {[%clk 0:04:17.9]} 16. Nxd7 {[%clk
0:04:08.8]} 16... Bg4 {[%clk 0:04:11.8]} 17. Nxf8 {[%clk 0:04:06.8]} 17... Kxf8
{[%clk 0:04:10]} 18. h3 {[%clk 0:04:01.6]} 18... Bf5 {[%clk 0:04:08.5]} 19. g4
{[%clk 0:03:58.4]} 19... Bd7 {[%clk 0:04:06.7]} 20. Ne4 {[%clk 0:03:55.6]} 20...
Nxd5 {[%clk 0:04:02.8]} 21. Nxd6 {[%clk 0:03:52.9]} 21... cxd6 {[%clk
0:04:01.7]} 22. Rad1 {[%clk 0:03:49.1]} 1-0

[Event "Live Chess"]
[Site "Chess.com"]
[Date "2024.06.01"]
[Round "-"]
[White "ACM42"]
[Black "Dave_Barnes"]
[Result "1-0"]
[WhiteElo "2214"]
[BlackElo "1389"]
[TimeControl "300"]
[EndTime "12:06:37 PDT"]
[Termination "ACM42 won by resignation"]

1. e4 {[%clk 0:04:57.7]} 1... e5 {[%clk 0:04:57.5]} 2. Nf3 {[%clk 0:04:56.6]}
2... Nf6 {[%clk 0:04:56]} 3. d4 {[%clk 0:04:52.6]} 3... Nxe4 {[%clk 0:04:52.7]}
4. Bd3 {[%clk 0:04:45.6]} 4... d5 {[%clk 0:04:49.4]} 5. Nxe5 {[%clk 0:04:43.6]}
5... Bd6 {[%clk 0:04:42.4]} 6. O-O {[%clk 0:04:41.2]} 6... O-O {[%clk
0:04:39.5]} 7. c4 {[%clk 0:04:40]} 7... Nf6 {[%clk 0:04:23]} 8. cxd5 {[%clk
0:04:35]} 8... Nxd5 {[%clk 0:04:20.4]} 9. Nc3 {[%clk 0:04:33.7]} 9... Nb6 {[%clk
0:04:04.5]} 10. Ne4 {[%clk 0:04:28.6]} 10... Be7 {[%clk 0:03:48.7]} 11. Be3
{[%clk 0:03:58.5]} 11... c6 {[%clk 0:03:40.3]} 12. Qf3 {[%clk 0:03:54.3]} 12...
N8d7 {[%clk 0:03:28.8]} 13. Rad1 {[%clk 0:03:46.2]} 13... Nd5 {[%clk 0:03:22.1]}
14. Bc1 {[%clk 0:03:27]} 14... N7f6 {[%clk 0:03:10.8]} 15. Nxf6+ {[%clk
0:03:12.1]} 15... Bxf6 {[%clk 0:03:05]} 16. Rfe1 {[%clk 0:03:10.2]} 16... Be6
{[%clk 0:02:54.5]} 17. Ng4 {[%clk 0:03:08.5]} 17... Bg5 {[%clk 0:02:25.9]} 18.
Ne3 {[%clk 0:02:36.7]} 18... Nxe3 {[%clk 0:02:11.1]} 19. fxe3 {[%clk 0:02:33.6]}
19... Bxa2 {[%clk 0:02:05.9]} 20. Rf1 {[%clk 0:02:14.4]} 20... Bb3 {[%clk
0:01:54.4]} 21. Rde1 {[%clk 0:02:11.8]} 21... Qc7 {[%clk 0:01:33.1]} 22. Qf5
{[%clk 0:02:07.1]} 1-0

[Event "Live Chess"]
[Site "Chess.com"]
[Date "2024.06.01"]
[Round "-"]
[White "chessfiction"]
[Black "GwaryTek"]
[Result "1-0"]
[WhiteElo "2418"]
[BlackElo "1906"]
[TimeControl "300"]
[EndTime "12:06:40 PDT"]
[Termination "chessfiction won by resignation"]

1. e4 {[%clk 0:04:51.7]} 1... Nf6 {[%clk 0:04:56.1]} 2. e5 {[%clk 0:04:44.1]}
2... Nd5 {[%clk 0:04:43.7]} 3. Nc3 {[%clk 0:04:44]} 3... Nxc3 {[%clk 0:04:41.6]}
4. dxc3 {[%clk 0:04:43.9]} 4... d5 {[%clk 0:04:40.8]} 5. Bd3 {[%clk 0:04:43]}
5... c5 {[%clk 0:04:39.9]} 6. b3 {[%clk 0:04:15.1]} 6... Nc6 {[%clk 0:04:34.2]}
7. Nf3 {[%clk 0:04:13.5]} 7... Bg4 {[%clk 0:04:32.1]} 8. Bb2 {[%clk 0:04:11.3]}
8... Bxf3 {[%clk 0:04:13.4]} 9. Qxf3 {[%clk 0:04:06.2]} 9... Nxe5 {[%clk
0:04:12.4]} 10. Bb5+ {[%clk 0:03:37.1]} 10... Nc6 {[%clk 0:04:10.4]} 11. O-O-O
{[%clk 0:03:35.4]} 11... e6 {[%clk 0:04:02.9]} 12. c4 {[%clk 0:03:34.3]} 12...
Qg5+ {[%clk 0:03:54.9]} 13. Kb1 {[%clk 0:03:31.8]} 13... O-O-O {[%clk
0:03:53.6]} 14. h4 {[%clk 0:03:19]} 14... Qf5 {[%clk 0:03:37.3]} 15. Qxf5 {[%clk
0:03:10.4]} 15... exf5 {[%clk 0:03:35.2]} 16. cxd5 {[%clk 0:03:10.3]} 16... Ne7
{[%clk 0:02:52.3]} 17. d6 {[%clk 0:02:46]} 17... Nc6 {[%clk 0:02:45.2]} 18. Bd3
{[%clk 0:01:53]} 18... Bxd6 {[%clk 0:02:07.8]} 19. Bxf5+ {[%clk 0:01:50.7]}
19... Kc7 {[%clk 0:02:06.4]} 20. Bxg7 {[%clk 0:01:45]} 20... Rhg8 {[%clk
0:02:04.9]} 21. Bf6 {[%clk 0:01:44.2]} 21... Rde8 {[%clk 0:01:59.1]} 22. g4
{[%clk 0:01:41.6]} 22... Nd4 {[%clk 0:01:21.5]} 23. Bxd4 {[%clk 0:01:37.1]}
23... cxd4 {[%clk 0:01:21.4]} 24. Rxd4 {[%clk 0:01:31.1]} 24... Re2 {[%clk
0:01:19.8]} 25. Rhd1 {[%clk 0:01:27.8]} 25... Ba3 {[%clk 0:01:12.4]} 26. Rd7+
{[%clk 0:01:25.3]} 26... Kc6 {[%clk 0:01:10.7]} 27. Rxf7 {[%clk 0:01:22.3]}
27... Rd8 {[%clk 0:01:08.1]} 28. Bd3 {[%clk 0:01:05.4]} 28... Rxd3 {[%clk
0:00:56.4]} 29. cxd3 {[%clk 0:01:01.6]} 29... Rb2+ {[%clk 0:00:53.5]} 30. Ka1
{[%clk 0:01:00.4]} 30... Kd5 {[%clk 0:00:34.6]} 31. Rf5+ {[%clk 0:00:53.2]}
31... Kd4 {[%clk 0:00:26.9]} 32. Ra5 {[%clk 0:00:52.5]} 1-0

[Event "Live Chess"]
[Site "Chess.com"]
[Date "2024.06.01"]
[Round "-"]
[White "Queensandpawns"]
[Black "gobbles19"]
[Result "0-1"]
[WhiteElo "2414"]
[BlackElo "2218"]
[TimeControl "300"]
[EndTime "12:06:40 PDT"]
[Termination "gobbles19 won by resignation"]

1. d4 {[%clk 0:04:56.6]} 1... Nf6 {[%clk 0:04:57.8]} 2. Nc3 {[%clk 0:04:56.5]}
2... d6 {[%clk 0:04:56.2]} 3. Bf4 {[%clk 0:04:55.7]} 3... g6 {[%clk 0:04:53.7]}
4. e3 {[%clk 0:04:55.1]} 4... Bg7 {[%clk 0:04:53.1]} 5. h4 {[%clk 0:04:54.7]}
5... h5 {[%clk 0:04:50.5]} 6. Nf3 {[%clk 0:04:53.4]} 6... Bg4 {[%clk 0:04:46.3]}
7. Bc4 {[%clk 0:04:52.6]} 7... Nbd7 {[%clk 0:04:39.8]} 8. Qd3 {[%clk 0:04:51.7]}
8... Bxf3 {[%clk 0:04:08]} 9. gxf3 {[%clk 0:04:49.5]} 9... e5 {[%clk 0:04:04.2]}
10. Bg5 {[%clk 0:04:45.7]} 10... exd4 {[%clk 0:03:57.1]} 11. exd4 {[%clk
0:04:45.6]} 11... Nb6 {[%clk 0:03:49.8]} 12. O-O-O {[%clk 0:04:42.6]} 12... O-O
{[%clk 0:03:35.8]} 13. Qxg6 {[%clk 0:04:34.4]} 13... Nxc4 {[%clk 0:03:34.2]} 14.
Bxf6 {[%clk 0:04:31.1]} 14... Qxf6 {[%clk 0:03:33.1]} 15. Qg3 {[%clk 0:04:25.9]}
15... Qh6+ {[%clk 0:03:20.9]} 16. Kb1 {[%clk 0:04:24.5]} 16... Kh8 {[%clk
0:03:10.2]} 17. Nd5 {[%clk 0:04:19.6]} 17... c5 {[%clk 0:02:56.3]} 18. Rdg1
{[%clk 0:04:16]} 18... Bxd4 {[%clk 0:02:47.3]} 19. Ne7 {[%clk 0:04:09.3]} 19...
Be5 {[%clk 0:02:39.9]} 20. f4 {[%clk 0:03:57.3]} 20... Bxf4 {[%clk 0:02:33.6]}
21. Qc3+ {[%clk 0:03:46.3]} 21... Ne5 {[%clk 0:02:29]} 22. Nf5 {[%clk
0:03:41.3]} 22... Qf6 {[%clk 0:02:20.6]} 23. Ng7 {[%clk 0:03:29.3]} 23... Ng4
{[%clk 0:01:48.8]} 24. Nxh5 {[%clk 0:03:20.2]} 24... Qxc3 {[%clk 0:01:47.3]} 25.
bxc3 {[%clk 0:03:20.1]} 25... Nxf2 {[%clk 0:01:46.2]} 26. Nxf4 {[%clk
0:03:16.8]} 26... Nxh1 {[%clk 0:01:44.8]} 27. Rxh1 {[%clk 0:03:16.7]} 27... Rae8
{[%clk 0:01:42.9]} 28. Rf1 {[%clk 0:03:03.8]} 28... Kh7 {[%clk 0:01:40.9]} 29.
Nd5 {[%clk 0:03:02.4]} 29... f5 {[%clk 0:01:38.5]} 30. Nc7 {[%clk 0:02:59.2]}
30... Re4 {[%clk 0:01:34.9]} 31. Nb5 {[%clk 0:02:57.3]} 31... d5 {[%clk
0:01:29.1]} 32. Nc7 {[%clk 0:02:55.1]} 32... d4 {[%clk 0:01:27.4]} 33. cxd4
{[%clk 0:02:52.3]} 33... cxd4 {[%clk 0:01:27.3]} 34. Nb5 {[%clk 0:02:48.2]}
34... Rxh4 {[%clk 0:01:22.9]} 35. Nd6 {[%clk 0:02:45.7]} 35... f4 {[%clk
0:01:20.7]} 36. Ne4 {[%clk 0:02:44.4]} 36... Kh6 {[%clk 0:01:17.1]} 37. Kc1
{[%clk 0:02:39.4]} 37... f3 {[%clk 0:01:16.1]} 38. Ng3 {[%clk 0:02:38]} 38...
Rh2 {[%clk 0:01:15]} 39. Ne4 {[%clk 0:02:35.7]} 39... Rc8 {[%clk 0:01:10.3]} 40.
Rxf3 {[%clk 0:02:32.3]} 40... Rcxc2+ {[%clk 0:01:09.3]} 41. Kd1 {[%clk 0:02:32]}
41... Rxa2 {[%clk 0:01:07.9]} 42. Rf6+ {[%clk 0:02:28.6]} 42... Kg7 {[%clk
0:01:06.2]} 0-1

[Event "Live Chess"]
[Site "Chess.com"]
[Date "2024.06.01"]
[Round "-"]
[White "Colm_Buckley"]
[Black "Thebigsqueeze"]
[Result "1-0"]
[WhiteElo "1848"]
[BlackElo "2290"]
[TimeControl "300"]
[EndTime "12:07:02 PDT"]
[Termination "Colm_Buckley won by resignation"]

1. d4 {[%clk 0:04:57.7]} 1... Nf6 {[%clk 0:04:57.7]} 2. c4 {[%clk 0:04:57.2]}
2... c5 {[%clk 0:04:57]} 3. e3 {[%clk 0:04:54.2]} 3... d5 {[%clk 0:04:55.5]} 4.
Nf3 {[%clk 0:04:49.8]} 4... cxd4 {[%clk 0:04:54.1]} 5. exd4 {[%clk 0:04:48.5]}
5... Nc6 {[%clk 0:04:53.6]} 6. Nc3 {[%clk 0:04:47.1]} 6... g6 {[%clk 0:04:52.8]}
7. Be2 {[%clk 0:04:44.3]} 7... Bg7 {[%clk 0:04:51.9]} 8. O-O {[%clk 0:04:41.5]}
8... O-O {[%clk 0:04:51.3]} 9. c5 {[%clk 0:04:40.2]} 9... Qc7 {[%clk 0:04:44.6]}
10. h3 {[%clk 0:04:38]} 10... e5 {[%clk 0:04:40.1]} 11. Nxe5 {[%clk 0:04:32.2]}
11... Nxe5 {[%clk 0:04:38.6]} 12. dxe5 {[%clk 0:04:30.9]} 12... Qxe5 {[%clk
0:04:37.9]} 13. Bf3 {[%clk 0:04:23.3]} 13... Rd8 {[%clk 0:04:33.8]} 14. Re1
{[%clk 0:04:21.3]} 14... Qc7 {[%clk 0:04:28.7]} 15. Be3 {[%clk 0:04:04.6]} 15...
d4 {[%clk 0:03:40.3]} 16. Bxd4 {[%clk 0:03:48.6]} 16... Nh5 {[%clk 0:03:37.7]}
17. Nb5 {[%clk 0:03:25]} 17... Qa5 {[%clk 0:03:34.4]} 18. Nd6 {[%clk 0:03:09.7]}
18... Nf6 {[%clk 0:02:59.9]} 19. Bxf6 {[%clk 0:03:03.3]} 19... Bxf6 {[%clk
0:02:58]} 20. Qb3 {[%clk 0:02:54.9]} 20... Be6 {[%clk 0:02:50.8]} 21. Rxe6
{[%clk 0:02:38]} 21... fxe6 {[%clk 0:02:49.4]} 22. Qxe6+ {[%clk 0:02:36.4]}
22... Kg7 {[%clk 0:02:47.6]} 23. Qf7+ {[%clk 0:02:32.5]} 23... Kh6 {[%clk
0:02:45.4]} 24. Qxf6 {[%clk 0:02:27.3]} 1-0

[Event "Live Chess"]
[Site "Chess.com"]
[Date "2024.06.01"]
[Round "-"]
[White "NeilDruggan73"]
[Black "Silverback7829"]
[Result "1-0"]
[WhiteElo "1730"]
[BlackElo "1172"]
[TimeControl "300"]
[EndTime "12:07:19 PDT"]
[Termination "NeilDruggan73 won by checkmate"]

1. d4 {[%clk 0:04:57]} 1... d5 {[%clk 0:04:56.9]} 2. Nf3 {[%clk 0:04:55.4]} 2...
Nc6 {[%clk 0:04:54.8]} 3. Bg5 {[%clk 0:04:53.9]} 3... f6 {[%clk 0:04:51]} 4. Bh4
{[%clk 0:04:48.7]} 4... Bg4 {[%clk 0:04:45.8]} 5. h3 {[%clk 0:04:44.8]} 5...
Bxf3 {[%clk 0:04:44]} 6. gxf3 {[%clk 0:04:43.7]} 6... Nb4 {[%clk 0:04:37.8]} 7.
e3 {[%clk 0:04:38.1]} 7... e6 {[%clk 0:04:32.4]} 8. c3 {[%clk 0:04:34]} 8... Nc6
{[%clk 0:04:27.6]} 9. Bd3 {[%clk 0:04:33]} 9... Bd6 {[%clk 0:04:23.2]} 10. f4
{[%clk 0:04:31.7]} 10... f5 {[%clk 0:04:19.7]} 11. Bxd8 {[%clk 0:04:28.5]} 11...
Rxd8 {[%clk 0:04:10.5]} 12. Nd2 {[%clk 0:04:27.2]} 12... Nf6 {[%clk 0:04:06.5]}
13. Qb3 {[%clk 0:04:24.8]} 13... Na5 {[%clk 0:04:00.6]} 14. Qa4+ {[%clk
0:04:22]} 14... Nc6 {[%clk 0:03:55.3]} 15. Bb5 {[%clk 0:04:20.4]} 15... a6
{[%clk 0:03:49.8]} 16. Bxc6+ {[%clk 0:04:18.5]} 16... bxc6 {[%clk 0:03:44.2]}
17. Qxc6+ {[%clk 0:04:18.1]} 17... Nd7 {[%clk 0:03:38.2]} 18. Qxa6 {[%clk
0:04:10]} 18... g6 {[%clk 0:03:32.2]} 19. h4 {[%clk 0:04:06.7]} 19... Rg8 {[%clk
0:03:26.4]} 20. Nf3 {[%clk 0:04:01.5]} 20... Nf6 {[%clk 0:03:19.3]} 21. Qb5+
{[%clk 0:03:55.5]} 21... Nd7 {[%clk 0:03:12.4]} 22. a4 {[%clk 0:03:51.9]} 22...
Ke7 {[%clk 0:03:02.4]} 23. b4 {[%clk 0:03:28.2]} 23... e5 {[%clk 0:02:51.7]} 24.
dxe5 {[%clk 0:03:24.1]} 24... Bxe5 {[%clk 0:02:39.1]} 25. fxe5 {[%clk
0:03:22.7]} 25... Rgf8 {[%clk 0:02:24.4]} 26. h5 {[%clk 0:02:51.7]} 26... gxh5
{[%clk 0:02:16.5]} 27. Rxh5 {[%clk 0:02:47.6]} 27... Rg8 {[%clk 0:02:12.5]} 28.
Rxh7+ {[%clk 0:02:42.1]} 28... Kf8 {[%clk 0:02:02.4]} 29. Qc6 {[%clk 0:02:31.4]}
29... Nb8 {[%clk 0:01:49]} 30. Qf6+ {[%clk 0:02:28.6]} 30... Ke8 {[%clk
0:01:38.4]} 31. Qe7# {[%clk 0:02:27.4]} 1-0

[Event "Live Chess"]
[Site "Chess.com"]
[Date "2024.06.01"]
[Round "-"]
[White "StoreySniper"]
[Black "koekoekoe"]
[Result "1-0"]
[WhiteElo "2548"]
[BlackElo "2068"]
[TimeControl "300"]
[EndTime "12:07:23 PDT"]
[Termination "StoreySniper won by resignation"]

1. c4 {[%clk 0:04:57.3]} 1... d5 {[%clk 0:04:59.9]} 2. cxd5 {[%clk 0:04:56.1]}
2... Qxd5 {[%clk 0:04:59.8]} 3. Nf3 {[%clk 0:04:55.1]} 3... Bf5 {[%clk
0:04:58.1]} 4. Nc3 {[%clk 0:04:52.7]} 4... Qa5 {[%clk 0:04:56.7]} 5. e4 {[%clk
0:04:50.9]} 5... Bg6 {[%clk 0:04:55.4]} 6. Qb3 {[%clk 0:04:45.3]} 6... Qb6
{[%clk 0:04:53.6]} 7. Qc2 {[%clk 0:04:38.7]} 7... Nd7 {[%clk 0:04:47.5]} 8. Nd5
{[%clk 0:04:24.8]} 8... Qa5 {[%clk 0:04:39.6]} 9. Nxc7+ {[%clk 0:04:19.7]} 9...
Kd8 {[%clk 0:04:38]} 10. Nxa8 {[%clk 0:04:18.9]} 10... e5 {[%clk 0:04:32.9]} 11.
Bc4 {[%clk 0:03:58.4]} 11... Bc5 {[%clk 0:04:22]} 12. O-O {[%clk 0:03:56]} 12...
Ne7 {[%clk 0:04:20.8]} 13. d4 {[%clk 0:03:52.6]} 13... Bxd4 {[%clk 0:04:13.1]}
14. Bd2 {[%clk 0:03:48.6]} 14... Qc5 {[%clk 0:04:07]} 15. Nxd4 {[%clk
0:03:42.3]} 15... exd4 {[%clk 0:04:00.9]} 16. Qb3 {[%clk 0:03:34.4]} 16... Qc8
{[%clk 0:03:47.4]} 17. Ba5+ {[%clk 0:03:21.6]} 17... b6 {[%clk 0:03:44.5]} 18.
Nxb6 {[%clk 0:03:20.4]} 18... axb6 {[%clk 0:03:42.5]} 19. Bxb6+ {[%clk
0:03:19.7]} 19... Nxb6 {[%clk 0:03:41.2]} 20. Qxb6+ {[%clk 0:03:18.4]} 20... Ke8
{[%clk 0:03:40.3]} 21. Bb5+ {[%clk 0:03:16.9]} 21... Kf8 {[%clk 0:03:39]} 22.
Rac1 {[%clk 0:03:15.4]} 22... Qa8 {[%clk 0:03:35]} 23. Qxd4 {[%clk 0:03:02.3]}
23... Bxe4 {[%clk 0:03:30.4]} 24. Rfd1 {[%clk 0:03:00.4]} 24... g6 {[%clk
0:03:17]} 25. Qd8+ {[%clk 0:02:59.2]} 25... Qxd8 {[%clk 0:03:16.1]} 26. Rxd8+
{[%clk 0:02:58.2]} 26... Kg7 {[%clk 0:03:16]} 27. Rxh8 {[%clk 0:02:57.5]} 27...
Kxh8 {[%clk 0:03:15.9]} 28. Re1 {[%clk 0:02:53.8]} 28... Bc6 {[%clk 0:03:11.1]}
29. Rxe7 {[%clk 0:02:49.1]} 29... Bxb5 {[%clk 0:03:09.8]} 30. Rxf7 {[%clk
0:02:47.9]} 30... Kg8 {[%clk 0:03:08.6]} 31. Rb7 {[%clk 0:02:46.7]} 31... Bc4
{[%clk 0:03:07.2]} 32. a4 {[%clk 0:02:44.3]} 32... Bd5 {[%clk 0:03:07.1]} 33.
Rc7 {[%clk 0:02:42.6]} 33... Bb3 {[%clk 0:03:05.2]} 34. a5 {[%clk 0:02:41.8]}
34... h5 {[%clk 0:03:04.2]} 35. a6 {[%clk 0:02:39.1]} 35... Bd5 {[%clk
0:03:04.1]} 36. a7 {[%clk 0:02:38]} 36... Kf8 {[%clk 0:03:02.5]} 37. b4 {[%clk
0:02:36.6]} 1-0